[Event "Early-Titled-Tuesday-Blitz-July-09-2024"]
[Site "Chess.com"]
[Date "2024.07.09"]
[Round "7"]
[White "AlphaPerseii"]
[Black "Horokoskii"]
[Result "1-0"]
[WhiteElo "2424"]
[BlackElo "2104"]
[TimeControl "180+1"]
[EndTime "9:21:08 PDT"]
[Termination "AlphaPerseii won by resignation"]

1. d4 {[%clk 0:03:00.9]} 1... Nf6 {[%clk 0:02:59.9]} 2. c4 {[%clk 0:03:01]} 2...
c5 {[%clk 0:02:57.7]} 3. d5 {[%clk 0:02:59]} 3... e6 {[%clk 0:02:57.8]} 4. Nc3
{[%clk 0:02:53.8]} 4... exd5 {[%clk 0:02:58]} 5. cxd5 {[%clk 0:02:53]} 5... d6
{[%clk 0:02:58.5]} 6. e4 {[%clk 0:02:51.6]} 6... g6 {[%clk 0:02:58.7]} 7. g3
{[%clk 0:02:46.5]} 7... Bg7 {[%clk 0:02:58.3]} 8. Bg2 {[%clk 0:02:46.8]} 8...
O-O {[%clk 0:02:58.8]} 9. Nge2 {[%clk 0:02:37.8]} 9... Re8 {[%clk 0:02:54.4]}
10. O-O {[%clk 0:02:36.2]} 10... Nbd7 {[%clk 0:02:54.3]} 11. Qc2 {[%clk
0:02:18.4]} 11... a6 {[%clk 0:02:49.8]} 12. a4 {[%clk 0:02:18]} 12... b6 {[%clk
0:02:48.3]} 13. Re1 {[%clk 0:01:53.4]} 13... Bb7 {[%clk 0:02:43.5]} 14. Bf4
{[%clk 0:01:49.7]} 14... Ne5 {[%clk 0:02:40.8]} 15. Nc1 {[%clk 0:01:40.1]} 15...
Nfd7 {[%clk 0:02:38.3]} 16. Nd3 {[%clk 0:01:18.4]} 16... Nxd3 {[%clk 0:02:27.6]}
17. Qxd3 {[%clk 0:01:19.3]} 17... Ne5 {[%clk 0:02:27.7]} 18. Qc2 {[%clk
0:01:16.7]} 18... c4 {[%clk 0:02:23.5]} 19. Be3 {[%clk 0:00:55.9]} 19... Nd3
{[%clk 0:02:20.9]} 20. Red1 {[%clk 0:00:56.4]} 20... Rc8 {[%clk 0:02:15.9]} 21.
Bf1 {[%clk 0:00:56.3]} 21... Nc5 {[%clk 0:02:05.2]} 22. f3 {[%clk 0:00:51.4]}
22... Qf6 {[%clk 0:01:47.8]} 23. Kg2 {[%clk 0:00:40.5]} 23... Nd7 {[%clk
0:01:24]} 24. Bd4 {[%clk 0:00:37.9]} 24... Qg5 {[%clk 0:01:17.3]} 25. Qf2 {[%clk
0:00:30.1]} 25... Bxd4 {[%clk 0:01:16.1]} 26. Qxd4 {[%clk 0:00:30.7]} 26... Rc7
{[%clk 0:01:08.4]} 27. Bxc4 {[%clk 0:00:30]} 27... Ne5 {[%clk 0:01:08.6]} 28. f4
{[%clk 0:00:19.8]} 28... Rxc4 {[%clk 0:01:07]} 29. fxg5 {[%clk 0:00:14.7]} 29...
Rxd4 {[%clk 0:01:06.2]} 30. Rxd4 {[%clk 0:00:15.6]} 30... Rc8 {[%clk 0:00:58.9]}
31. h3 {[%clk 0:00:15.1]} 31... Nc4 {[%clk 0:00:57.8]} 32. Rb1 {[%clk
0:00:09.3]} 32... Ne3+ {[%clk 0:00:51.6]} 33. Kf2 {[%clk 0:00:08.5]} 33... Nc2
{[%clk 0:00:51.9]} 34. Rd2 {[%clk 0:00:07.3]} 34... Nb4 {[%clk 0:00:52.5]} 35.
Ke3 {[%clk 0:00:06.5]} 35... a5 {[%clk 0:00:50.8]} 36. Rc1 {[%clk 0:00:06.6]}
36... Ba6 {[%clk 0:00:50.4]} 37. Ne2 {[%clk 0:00:06.6]} 37... Re8 {[%clk
0:00:48.7]} 38. Nd4 {[%clk 0:00:06.8]} 38... Kg7 {[%clk 0:00:42.3]} 39. Nb5
{[%clk 0:00:06.6]} 39... Bxb5 {[%clk 0:00:41.3]} 40. axb5 {[%clk 0:00:07.5]}
40... Re5 {[%clk 0:00:38.4]} 41. h4 {[%clk 0:00:07.3]} 41... h6 {[%clk 0:00:38]}
42. gxh6+ {[%clk 0:00:06.9]} 42... Kxh6 {[%clk 0:00:38.4]} 43. Rc7 {[%clk
0:00:07.4]} 43... f5 {[%clk 0:00:38.2]} 44. Rd4 {[%clk 0:00:04.2]} 44... fxe4
{[%clk 0:00:37.7]} 45. Rd7 {[%clk 0:00:03.9]} 45... Nxd5+ {[%clk 0:00:36.3]} 46.
Ke2 {[%clk 0:00:04]} 46... Nb4 {[%clk 0:00:23.3]} 47. R7xd6 {[%clk 0:00:04]}
47... Nc2 {[%clk 0:00:23.5]} 48. R4d5 {[%clk 0:00:03.5]} 48... Re8 {[%clk
0:00:23.5]} 49. Rg5 {[%clk 0:00:03.7]} 49... Rg8 {[%clk 0:00:22.2]} 50. Rxb6
{[%clk 0:00:03.7]} 50... e3 {[%clk 0:00:20.8]} 51. Rc5 {[%clk 0:00:02.4]} 51...
Nd4+ {[%clk 0:00:20.5]} 52. Kxe3 {[%clk 0:00:03]} 52... Rd8 {[%clk 0:00:18.9]}
53. Rcc6 {[%clk 0:00:02.1]} 53... Nf5+ {[%clk 0:00:18.8]} 54. Kf4 {[%clk
0:00:02.3]} 54... Ne7 {[%clk 0:00:18.6]} 55. Re6 {[%clk 0:00:02.3]} 55... Nd5+
{[%clk 0:00:18.1]} 56. Ke5 {[%clk 0:00:02.5]} 56... Nxb6 {[%clk 0:00:15.2]} 57.
Rxb6 {[%clk 0:00:03.4]} 57... Rd2 {[%clk 0:00:14.3]} 58. Ra6 {[%clk 0:00:03.7]}
58... Rxb2 {[%clk 0:00:13.1]} 59. Rxa5 {[%clk 0:00:04.3]} 59... Rb3 {[%clk
0:00:12.3]} 60. Kf4 {[%clk 0:00:04.9]} 60... Rb4+ {[%clk 0:00:12.1]} 61. Kf3
{[%clk 0:00:05.6]} 61... g5 {[%clk 0:00:11.2]} 62. Ra6+ {[%clk 0:00:04.7]} 62...
Kh5 {[%clk 0:00:10.4]} 63. g4+ {[%clk 0:00:02.9]} 63... Rxg4 {[%clk 0:00:05.4]}
64. Rh6+ {[%clk 0:00:03.8]} 64... Kxh6 {[%clk 0:00:05]} 65. Kxg4 {[%clk
0:00:04.7]} 65... gxh4 {[%clk 0:00:04.7]} 66. b6 {[%clk 0:00:05.6]} 1-0

[Event "Early-Titled-Tuesday-Blitz-July-09-2024"]
[Site "Chess.com"]
[Date "2024.07.09"]
[Round "7"]
[White "Rud_Makarian"]
[Black "BeanScreen"]
[Result "0-1"]
[WhiteElo "2981"]
[BlackElo "2697"]
[TimeControl "180+1"]
[EndTime "9:21:09 PDT"]
[Termination "BeanScreen won by resignation"]

1. Nf3 {[%clk 0:03:00.9]} 1... d5 {[%clk 0:03:00.6]} 2. g3 {[%clk 0:03:01.8]}
2... c6 {[%clk 0:03:00.6]} 3. c4 {[%clk 0:03:02.7]} 3... dxc4 {[%clk 0:02:58.4]}
4. Bg2 {[%clk 0:03:03.6]} 4... Nf6 {[%clk 0:02:56.4]} 5. O-O {[%clk 0:03:03.5]}
5... a5 {[%clk 0:02:49.4]} 6. Qc2 {[%clk 0:02:52.7]} 6... Nbd7 {[%clk
0:02:32.9]} 7. Qxc4 {[%clk 0:02:50.3]} 7... e5 {[%clk 0:02:26.6]} 8. d3 {[%clk
0:02:48.8]} 8... Be7 {[%clk 0:02:12]} 9. Qc2 {[%clk 0:02:44.8]} 9... O-O {[%clk
0:02:10.8]} 10. Nbd2 {[%clk 0:02:45.4]} 10... Re8 {[%clk 0:02:05.1]} 11. b3
{[%clk 0:02:32.4]} 11... Qc7 {[%clk 0:01:51.9]} 12. Bb2 {[%clk 0:02:32.1]} 12...
Bf8 {[%clk 0:01:50.3]} 13. a3 {[%clk 0:02:32.1]} 13... Nb6 {[%clk 0:01:45.6]}
14. Rac1 {[%clk 0:02:29.6]} 14... h6 {[%clk 0:01:37.2]} 15. Rfd1 {[%clk
0:02:28.1]} 15... Bf5 {[%clk 0:01:34.8]} 16. Ne4 {[%clk 0:02:24]} 16... Nxe4
{[%clk 0:01:16]} 17. dxe4 {[%clk 0:02:24.9]} 17... Bg4 {[%clk 0:01:14.1]} 18. h3
{[%clk 0:02:23.5]} 18... Bd7 {[%clk 0:01:13.6]} 19. h4 {[%clk 0:02:23.2]} 19...
f6 {[%clk 0:01:09.3]} 20. Kh2 {[%clk 0:02:23.3]} 20... Be6 {[%clk 0:01:09.2]}
21. Bh3 {[%clk 0:02:20.9]} 21... Bf7 {[%clk 0:01:08.1]} 22. Rd3 {[%clk
0:02:18.5]} 22... Rad8 {[%clk 0:01:03.6]} 23. Qc3 {[%clk 0:02:15.1]} 23... a4
{[%clk 0:00:54.3]} 24. b4 {[%clk 0:02:12.3]} 24... Nc4 {[%clk 0:00:52.3]} 25.
Rcd1 {[%clk 0:02:03.8]} 25... b5 {[%clk 0:00:51.2]} 26. Rd7 {[%clk 0:01:57.1]}
26... Qb6 {[%clk 0:00:46.9]} 27. Kg2 {[%clk 0:01:54.2]} 27... Rxd7 {[%clk
0:00:44.7]} 28. Rxd7 {[%clk 0:01:55.1]} 28... Rd8 {[%clk 0:00:45.2]} 29. Rxd8
{[%clk 0:01:49.9]} 29... Qxd8 {[%clk 0:00:46.1]} 30. Bc1 {[%clk 0:01:42.1]}
30... Qd1 {[%clk 0:00:45.5]} 31. Ng1 {[%clk 0:01:11.2]} 31... Qb3 {[%clk
0:00:44.3]} 32. Qf3 {[%clk 0:01:08.9]} 32... Qxf3+ {[%clk 0:00:37.7]} 33. Nxf3
{[%clk 0:01:08.5]} 33... c5 {[%clk 0:00:38.6]} 34. bxc5 {[%clk 0:01:04.3]} 34...
Bxc5 {[%clk 0:00:39.5]} 35. Bd7 {[%clk 0:01:00.2]} 35... Bxa3 {[%clk 0:00:39.5]}
36. Bxb5 {[%clk 0:01:00.8]} 36... Bxc1 {[%clk 0:00:38.1]} 37. Bxa4 {[%clk
0:01:01.4]} 37... Nd2 {[%clk 0:00:35.1]} 38. Bc6 {[%clk 0:00:56]} 38... Nxf3
{[%clk 0:00:33.3]} 39. Kxf3 {[%clk 0:00:51.6]} 39... h5 {[%clk 0:00:33.7]} 40.
e3 {[%clk 0:00:50.4]} 40... Kf8 {[%clk 0:00:30.1]} 41. Ke2 {[%clk 0:00:50.6]}
41... Ke7 {[%clk 0:00:29.8]} 42. Kd3 {[%clk 0:00:51.2]} 42... Kd6 {[%clk
0:00:29.8]} 43. Ba4 {[%clk 0:00:51.8]} 43... Kc5 {[%clk 0:00:29.1]} 44. Bd1
{[%clk 0:00:49.6]} 44... Bc4+ {[%clk 0:00:25.6]} 45. Kc3 {[%clk 0:00:47.3]}
45... Bf7 {[%clk 0:00:25.2]} 46. Bf3 {[%clk 0:00:40]} 46... Ba3 {[%clk
0:00:24.7]} 47. Kd2 {[%clk 0:00:40.2]} 47... Bb4+ {[%clk 0:00:24.9]} 48. Ke2
{[%clk 0:00:39.3]} 48... Bc4+ {[%clk 0:00:24.3]} 49. Kd1 {[%clk 0:00:39.7]}
49... g6 {[%clk 0:00:25.2]} 50. g4 {[%clk 0:00:31.5]} 50... hxg4 {[%clk
0:00:24]} 51. Bxg4 {[%clk 0:00:32.4]} 51... Bd3 {[%clk 0:00:22.3]} 52. Bf3
{[%clk 0:00:24.5]} 52... Kc4 {[%clk 0:00:19.6]} 53. Bg2 {[%clk 0:00:22.4]} 53...
Kc3 {[%clk 0:00:18.5]} 54. Bf3 {[%clk 0:00:23]} 54... Be7 {[%clk 0:00:17.4]} 55.
Bg2 {[%clk 0:00:21.2]} 55... Bf8 {[%clk 0:00:17.1]} 56. Bf3 {[%clk 0:00:21]}
56... Bh6 {[%clk 0:00:16.7]} 57. Bg2 {[%clk 0:00:18.8]} 57... Bb1 {[%clk
0:00:16.6]} 58. Ke2 {[%clk 0:00:17.9]} 58... Kc4 {[%clk 0:00:15]} 59. Bf3 {[%clk
0:00:17.5]} 59... Bd3+ {[%clk 0:00:14.4]} 60. Kd2 {[%clk 0:00:16.9]} 60... Bf8
{[%clk 0:00:14.7]} 61. Bg2 {[%clk 0:00:15.9]} 61... Bb4+ {[%clk 0:00:15.6]} 62.
Kd1 {[%clk 0:00:16.5]} 62... Kc5 {[%clk 0:00:15.5]} 63. Bf3 {[%clk 0:00:16.4]}
63... Kd6 {[%clk 0:00:15.8]} 64. Kc1 {[%clk 0:00:16.8]} 64... Ke6 {[%clk
0:00:15.8]} 65. Kd1 {[%clk 0:00:17.3]} 65... Kf7 {[%clk 0:00:16]} 66. h5 {[%clk
0:00:15]} 66... gxh5 {[%clk 0:00:13.9]} 67. Bxh5+ {[%clk 0:00:15.9]} 67... Kg7
{[%clk 0:00:14.1]} 68. Bf3 {[%clk 0:00:13.6]} 68... Kh6 {[%clk 0:00:14.4]} 69.
Bh1 {[%clk 0:00:10.4]} 69... Kg5 {[%clk 0:00:14.6]} 70. Bg2 {[%clk 0:00:11]}
70... Kg4 {[%clk 0:00:14.9]} 71. Bh1 {[%clk 0:00:10.8]} 71... Kh3 {[%clk
0:00:14.9]} 72. f4 {[%clk 0:00:10.9]} 72... Kg3 {[%clk 0:00:14.3]} 73. fxe5
{[%clk 0:00:08.1]} 73... fxe5 {[%clk 0:00:15.2]} 74. Kc1 {[%clk 0:00:08.8]}
74... Kf2 {[%clk 0:00:15.2]} 75. Kb2 {[%clk 0:00:09.3]} 75... Kxe3 {[%clk
0:00:15.6]} 76. Kb3 {[%clk 0:00:09.9]} 76... Bxe4 {[%clk 0:00:16]} 0-1

[Event "Early-Titled-Tuesday-Blitz-July-09-2024"]
[Site "Chess.com"]
[Date "2024.07.09"]
[Round "7"]
[White "ncofre98"]
[Black "Didici"]
[Result "0-1"]
[WhiteElo "2552"]
[BlackElo "2759"]
[TimeControl "180+1"]
[EndTime "9:21:10 PDT"]
[Termination "Didici won by checkmate"]

1. e4 {[%clk 0:03:00.9]} 1... c5 {[%clk 0:02:57.7]} 2. Nf3 {[%clk 0:03:00.8]}
2... d6 {[%clk 0:02:56.5]} 3. Bb5+ {[%clk 0:03:01.3]} 3... Bd7 {[%clk
0:02:55.5]} 4. Bxd7+ {[%clk 0:03:01.2]} 4... Nxd7 {[%clk 0:02:55.2]} 5. O-O
{[%clk 0:03:00.5]} 5... g6 {[%clk 0:02:55.6]} 6. c3 {[%clk 0:02:59.6]} 6... Bg7
{[%clk 0:02:55.6]} 7. d4 {[%clk 0:03:00.2]} 7... Ngf6 {[%clk 0:02:55.2]} 8. Re1
{[%clk 0:02:59.5]} 8... O-O {[%clk 0:02:55]} 9. Nbd2 {[%clk 0:02:53.5]} 9...
cxd4 {[%clk 0:02:54.8]} 10. cxd4 {[%clk 0:02:54.4]} 10... e6 {[%clk 0:02:53.7]}
11. Nf1 {[%clk 0:02:38.2]} 11... Rc8 {[%clk 0:02:34]} 12. Ng3 {[%clk 0:02:34.6]}
12... b5 {[%clk 0:02:21.1]} 13. h3 {[%clk 0:02:25.8]} 13... Nb6 {[%clk
0:02:00.4]} 14. Bf4 {[%clk 0:02:16.2]} 14... Nc4 {[%clk 0:01:45]} 15. Qe2 {[%clk
0:01:51.3]} 15... Qb6 {[%clk 0:01:18.2]} 16. Rad1 {[%clk 0:01:44.1]} 16... Rfe8
{[%clk 0:01:02.7]} 17. Bc1 {[%clk 0:01:32.1]} 17... b4 {[%clk 0:00:47.6]} 18. b3
{[%clk 0:01:12.8]} 18... Na5 {[%clk 0:00:43.7]} 19. Bb2 {[%clk 0:01:08.3]} 19...
Rc7 {[%clk 0:00:32.6]} 20. Qd2 {[%clk 0:00:58.1]} 20... Rec8 {[%clk 0:00:32.1]}
21. Rc1 {[%clk 0:00:57.6]} 21... d5 {[%clk 0:00:28.2]} 22. Rxc7 {[%clk
0:00:51.1]} 22... Rxc7 {[%clk 0:00:27]} 23. e5 {[%clk 0:00:51.6]} 23... Nd7
{[%clk 0:00:17.8]} 24. Ne2 {[%clk 0:00:22.2]} 24... Qb5 {[%clk 0:00:16.1]} 25.
Rc1 {[%clk 0:00:18.9]} 25... Rxc1+ {[%clk 0:00:15.1]} 26. Nxc1 {[%clk
0:00:19.8]} 26... Nb6 {[%clk 0:00:14.2]} 27. Nd3 {[%clk 0:00:19]} 27... Nc6
{[%clk 0:00:14.9]} 28. g4 {[%clk 0:00:09.9]} 28... a5 {[%clk 0:00:13.5]} 29. h4
{[%clk 0:00:09.5]} 29... a4 {[%clk 0:00:14]} 30. h5 {[%clk 0:00:09.5]} 30...
axb3 {[%clk 0:00:03.7]} 31. axb3 {[%clk 0:00:10.4]} 31... Nc4 {[%clk 0:00:04.2]}
32. bxc4 {[%clk 0:00:07.6]} 32... dxc4 {[%clk 0:00:05.1]} 33. Nc5 {[%clk
0:00:07.5]} 33... c3 {[%clk 0:00:05.3]} 34. Bxc3 {[%clk 0:00:07.9]} 34... bxc3
{[%clk 0:00:06.2]} 35. Qxc3 {[%clk 0:00:08.7]} 35... Ne7 {[%clk 0:00:05.9]} 36.
Ne4 {[%clk 0:00:06.9]} 36... Qd5 {[%clk 0:00:05.5]} 37. Nfd2 {[%clk 0:00:03.2]}
37... gxh5 {[%clk 0:00:04.9]} 38. gxh5 {[%clk 0:00:02.5]} 38... h6 {[%clk
0:00:05.4]} 39. Qc5 {[%clk 0:00:02]} 39... Nf5 {[%clk 0:00:04.6]} 40. Qxd5
{[%clk 0:00:02.1]} 40... exd5 {[%clk 0:00:05.5]} 41. Nf6+ {[%clk 0:00:01.9]}
41... Bxf6 {[%clk 0:00:05.6]} 42. exf6 {[%clk 0:00:02.8]} 42... Nxd4 {[%clk
0:00:06.3]} 43. Kg2 {[%clk 0:00:03.2]} 43... Ne6 {[%clk 0:00:04.8]} 44. Kg3
{[%clk 0:00:02.7]} 44... Kf8 {[%clk 0:00:05]} 45. Kg4 {[%clk 0:00:03.3]} 45...
Ke8 {[%clk 0:00:05.5]} 46. Kf5 {[%clk 0:00:03.9]} 46... Kd7 {[%clk 0:00:06.1]}
47. Ke5 {[%clk 0:00:04.6]} 47... Kc6 {[%clk 0:00:06.6]} 48. Nb3 {[%clk
0:00:04.1]} 48... Nf8 {[%clk 0:00:03.1]} 49. Nd4+ {[%clk 0:00:03.8]} 49... Kc5
{[%clk 0:00:03.7]} 50. Nb3+ {[%clk 0:00:03.3]} 50... Kc4 {[%clk 0:00:03.6]} 51.
Nd2+ {[%clk 0:00:04]} 51... Kd3 {[%clk 0:00:04.2]} 52. Nf3 {[%clk 0:00:03.3]}
52... Ke2 {[%clk 0:00:04.6]} 53. Nd4+ {[%clk 0:00:03.5]} 53... Kxf2 {[%clk
0:00:05]} 54. Nf5 {[%clk 0:00:03.4]} 54... Nd7+ {[%clk 0:00:04.7]} 55. Kxd5
{[%clk 0:00:02.4]} 55... Nxf6+ {[%clk 0:00:05.4]} 56. Ke5 {[%clk 0:00:02.8]}
56... Ng8 {[%clk 0:00:04.8]} 57. Nxh6 {[%clk 0:00:02.1]} 57... Nxh6 {[%clk
0:00:05]} 58. Kf6 {[%clk 0:00:02.8]} 58... Kg3 {[%clk 0:00:04.2]} 59. Kg7 {[%clk
0:00:03]} 59... f5 {[%clk 0:00:04.7]} 60. Kxh6 {[%clk 0:00:03.3]} 60... f4
{[%clk 0:00:05.6]} 61. Kg5 {[%clk 0:00:03.9]} 61... f3 {[%clk 0:00:06.5]} 62. h6
{[%clk 0:00:04.7]} 62... f2 {[%clk 0:00:07.3]} 63. h7 {[%clk 0:00:05.3]} 63...
f1=Q {[%clk 0:00:07.9]} 64. h8=Q {[%clk 0:00:05.7]} 64... Qf4+ {[%clk
0:00:08.4]} 65. Kg6 {[%clk 0:00:06.3]} 65... Qe4+ {[%clk 0:00:08.5]} 66. Kh6
{[%clk 0:00:05.7]} 66... Qh4+ {[%clk 0:00:06.9]} 67. Kg7 {[%clk 0:00:05.6]}
67... Qd4+ {[%clk 0:00:07.6]} 68. Kh7 {[%clk 0:00:06]} 68... Qe4+ {[%clk
0:00:08.1]} 69. Kg7 {[%clk 0:00:06.2]} 69... Kg4 {[%clk 0:00:08]} 70. Qh7 {[%clk
0:00:05.6]} 70... Qe7+ {[%clk 0:00:07.7]} 71. Kh6 {[%clk 0:00:05.4]} 71... Qg5#
{[%clk 0:00:07.4]} 0-1

[Event "Early-Titled-Tuesday-Blitz-July-09-2024"]
[Site "Chess.com"]
[Date "2024.07.09"]
[Round "7"]
[White "BashirovKemal"]
[Black "Fandorine"]
[Result "0-1"]
[WhiteElo "2675"]
[BlackElo "2915"]
[TimeControl "180+1"]
[EndTime "9:21:12 PDT"]
[Termination "Fandorine won by resignation"]

1. d4 {[%clk 0:03:00.9]} 1... Nf6 {[%clk 0:02:59.7]} 2. Nf3 {[%clk 0:03:00.7]}
2... g6 {[%clk 0:02:59.8]} 3. Nbd2 {[%clk 0:03:00.5]} 3... Bg7 {[%clk 0:03:00]}
4. e4 {[%clk 0:03:00.8]} 4... O-O {[%clk 0:03:00.7]} 5. c3 {[%clk 0:02:57.3]}
5... d6 {[%clk 0:02:57.9]} 6. Bc4 {[%clk 0:02:57]} 6... c6 {[%clk 0:02:52.2]} 7.
Bb3 {[%clk 0:02:56.5]} 7... e5 {[%clk 0:02:46.8]} 8. O-O {[%clk 0:02:49]} 8...
Nbd7 {[%clk 0:02:46.8]} 9. Re1 {[%clk 0:02:46.1]} 9... Qe7 {[%clk 0:02:45.9]}
10. Nc4 {[%clk 0:02:44.2]} 10... exd4 {[%clk 0:02:23.7]} 11. e5 {[%clk
0:02:11.6]} 11... dxe5 {[%clk 0:02:23.1]} 12. Ncxe5 {[%clk 0:02:11.3]} 12...
Nxe5 {[%clk 0:02:14.1]} 13. Nxe5 {[%clk 0:02:07.3]} 13... Be6 {[%clk 0:02:10.6]}
14. Bxe6 {[%clk 0:02:00]} 14... fxe6 {[%clk 0:02:09.3]} 15. cxd4 {[%clk
0:02:00.6]} 15... Rad8 {[%clk 0:02:08.8]} 16. Bg5 {[%clk 0:01:57.1]} 16... Qb4
{[%clk 0:02:05.8]} 17. Qb3 {[%clk 0:01:53.6]} 17... Qxb3 {[%clk 0:02:04.3]} 18.
axb3 {[%clk 0:01:54.5]} 18... a6 {[%clk 0:02:03.6]} 19. Rad1 {[%clk 0:01:40.4]}
19... Rd5 {[%clk 0:01:55.4]} 20. Nf3 {[%clk 0:01:32.3]} 20... Re8 {[%clk
0:01:48.7]} 21. Bf4 {[%clk 0:01:28.1]} 21... Nd7 {[%clk 0:01:43.4]} 22. Kf1
{[%clk 0:01:17]} 22... h6 {[%clk 0:01:38.1]} 23. h4 {[%clk 0:01:15.7]} 23... Kf7
{[%clk 0:01:38.1]} 24. Rd3 {[%clk 0:01:06]} 24... Rd8 {[%clk 0:01:31.5]} 25.
Rde3 {[%clk 0:01:03.1]} 25... Nf8 {[%clk 0:01:29.9]} 26. Bc7 {[%clk 0:00:59.1]}
26... Rc8 {[%clk 0:01:22.3]} 27. Be5 {[%clk 0:00:56.9]} 27... Bxe5 {[%clk
0:01:18.9]} 28. Nxe5+ {[%clk 0:00:52.9]} 28... Kg7 {[%clk 0:01:19]} 29. Re4
{[%clk 0:00:47.3]} 29... Rcd8 {[%clk 0:01:11.6]} 30. Nf3 {[%clk 0:00:42]} 30...
Rb5 {[%clk 0:01:08.7]} 31. R1e3 {[%clk 0:00:41.1]} 31... Rf5 {[%clk 0:00:56.8]}
32. Ke2 {[%clk 0:00:39.4]} 32... Rb5 {[%clk 0:00:54.5]} 33. Ne5 {[%clk
0:00:37.4]} 33... Rb4 {[%clk 0:00:39.7]} 34. Rf3 {[%clk 0:00:26.9]} 34... Rbxd4
{[%clk 0:00:31.8]} 35. Ref4 {[%clk 0:00:10.1]} 35... Rxf4 {[%clk 0:00:27.6]} 36.
Rxf4 {[%clk 0:00:11]} 36... Rd5 {[%clk 0:00:23.4]} 37. Nd3 {[%clk 0:00:07.4]}
37... e5 {[%clk 0:00:20.5]} 38. Re4 {[%clk 0:00:06.8]} 38... Kf6 {[%clk
0:00:20.5]} 39. f4 {[%clk 0:00:06.9]} 39... exf4 {[%clk 0:00:20.9]} 40. Rxf4+
{[%clk 0:00:07.5]} 40... Kg7 {[%clk 0:00:20.3]} 41. Re4 {[%clk 0:00:07.6]} 41...
Kf7 {[%clk 0:00:17.4]} 42. Rf4+ {[%clk 0:00:06.7]} 42... Ke7 {[%clk 0:00:17.7]}
43. Re4+ {[%clk 0:00:06.6]} 43... Kd7 {[%clk 0:00:12.9]} 44. b4 {[%clk
0:00:05.5]} 44... Ne6 {[%clk 0:00:12.6]} 45. Ne5+ {[%clk 0:00:05.1]} 45... Kd6
{[%clk 0:00:11.5]} 46. Nxg6 {[%clk 0:00:05.2]} 46... Nd4+ {[%clk 0:00:11.2]} 47.
Ke3 {[%clk 0:00:04.5]} 47... Nc2+ {[%clk 0:00:10.3]} 48. Kf4 {[%clk 0:00:04.3]}
48... Rd2 {[%clk 0:00:09.9]} 49. g4 {[%clk 0:00:03.7]} 49... Na1 {[%clk
0:00:04.5]} 50. Kf5 {[%clk 0:00:04.2]} 50... Rxb2 {[%clk 0:00:04.2]} 51. Nf4
{[%clk 0:00:04.6]} 51... Nb3 {[%clk 0:00:03.4]} 52. Re6+ {[%clk 0:00:04.3]}
52... Kd7 {[%clk 0:00:04]} 53. Rxh6 {[%clk 0:00:03.3]} 53... Nd4+ {[%clk
0:00:04.6]} 54. Kg6 {[%clk 0:00:03.3]} 54... Rxb4 {[%clk 0:00:05]} 55. g5 {[%clk
0:00:02.6]} 55... Nf3 {[%clk 0:00:05.5]} 56. Nd3 {[%clk 0:00:01.5]} 56... Rxh4
{[%clk 0:00:05]} 57. Nc5+ {[%clk 0:00:01.9]} 57... Kc7 {[%clk 0:00:03.6]} 58.
Rxh4 {[%clk 0:00:01.7]} 58... Nxh4+ {[%clk 0:00:04.4]} 59. Kh5 {[%clk
0:00:02.2]} 59... Nf5 {[%clk 0:00:04.4]} 60. Ne6+ {[%clk 0:00:02.6]} 60... Kd6
{[%clk 0:00:04.6]} 61. Nf4 {[%clk 0:00:02.9]} 61... a5 {[%clk 0:00:04.9]} 62.
Kg6 {[%clk 0:00:03.4]} 62... Ne7+ {[%clk 0:00:04.7]} 63. Kf7 {[%clk 0:00:03.9]}
63... a4 {[%clk 0:00:05.2]} 64. Nd3 {[%clk 0:00:04.5]} 64... a3 {[%clk
0:00:05.7]} 65. Nb4 {[%clk 0:00:04.6]} 65... b5 {[%clk 0:00:05.9]} 66. Nxc6
{[%clk 0:00:03.8]} 66... Nxc6 {[%clk 0:00:05.7]} 67. g6 {[%clk 0:00:03.7]} 67...
Ne5+ {[%clk 0:00:06.4]} 0-1